[Event "January 2 Late 2024"]
[Site "https://www.chess.com"]
[Date "2024.01.02"]
[Round "1"]
[White "Haydon, David L"]
[Black "Obon Temprano, Sergi"]
[Result "1-0"]
[Board "131"]
[TimeControl "180+1"]
[WhiteFideId "415405"]
[BlackFideId "2226545"]
[WhiteElo "2671"]
[BlackElo "2366"]
[WhiteTeam "ENG"]
[BlackTeam "ESP"]
[WhiteClock "0:00:23"]
[BlackClock "0:00:12"]

1. e4 {[%clk 0:03:00]}  e6 {[%clk 0:02:59]} 2. d4 {[%clk 0:02:59]}  d5 {[%clk 0:02:59]} 3. Nd2 {[%clk 0:03:00]}  dxe4 {[%clk 0:02:58]} 4. Nxe4 {[%clk 0:03:00]}  Bd7 {[%clk 0:02:58]} 5. Nf3 {[%clk 0:02:58]}  Bc6 {[%clk 0:02:59]} 6. Bd3 {[%clk 0:02:58]}  Nd7 {[%clk 0:02:59]} 7. Qe2 {[%clk 0:02:57]}  Ngf6 {[%clk 0:02:59]} 8. Bg5 {[%clk 0:02:53]}  Be7 {[%clk 0:02:58]} 9. Ng3 {[%clk 0:02:50]}  Bxf3 {[%clk 0:02:52]} 10. Qxf3 {[%clk 0:02:46]}  c6 {[%clk 0:02:52]} 11. O-O {[%clk 0:02:41]}  O-O {[%clk 0:02:49]} 12. c3 {[%clk 0:02:39]}  h6 {[%clk 0:02:49]} 13. Bd2 {[%clk 0:02:37]}  a5 {[%clk 0:02:40]} 14. Rae1 {[%clk 0:02:32]}  Qb6 {[%clk 0:02:39]} 15. Bc1 {[%clk 0:02:16]}  Rfd8 {[%clk 0:02:38]} 16. Re2 {[%clk 0:02:08]}  Nf8 {[%clk 0:02:37]} 17. Nf5 {[%clk 0:02:04]}  Rd7 {[%clk 0:02:22]} 18. Nxe7+ {[%clk 0:02:01]}  Rxe7 {[%clk 0:02:22]} 19. Bxh6 {[%clk 0:02:01]}  Ne8 {[%clk 0:01:51]} 20. Bg5 {[%clk 0:01:57]}  Rd7 {[%clk 0:01:47]} 21. h4 {[%clk 0:01:51]}  Nh7 {[%clk 0:01:42]} 22. Qg3 {[%clk 0:01:30]}  Nxg5 {[%clk 0:01:41]} 23. Qxg5 {[%clk 0:01:23]}  Kf8 {[%clk 0:01:35]} 24. h5 {[%clk 0:01:20]}  Rd5 {[%clk 0:01:29]} 25. Qh4 {[%clk 0:01:20]}  Nf6 {[%clk 0:01:24]} 26. h6 {[%clk 0:01:17]}  Rh5 {[%clk 0:01:23]} 27. hxg7+ {[%clk 0:01:04]}  Kxg7 {[%clk 0:01:23]} 28. Qg3+ {[%clk 0:01:04]}  Kh8 {[%clk 0:01:21]} 29. Re5 {[%clk 0:00:58]}  Rh6 {[%clk 0:01:03]} 30. Qf4 {[%clk 0:00:34]}  Kg7 {[%clk 0:00:46]} 31. Rg5+ {[%clk 0:00:33]}  Kf8 {[%clk 0:00:40]} 32. Rg3 {[%clk 0:00:31]}  Ke7 {[%clk 0:00:16]} 33. Qxh6 {[%clk 0:00:29]}  c5 {[%clk 0:00:16]} 34. dxc5 {[%clk 0:00:25]}  Qxc5 {[%clk 0:00:17]} 35. Qg5 {[%clk 0:00:25]}  Qd6 {[%clk 0:00:14]} 36. Rf3 {[%clk 0:00:24]}  e5 {[%clk 0:00:12]} 37. Re1 {[%clk 0:00:23]} 1-0

[Event "January 2 Late 2024"]
[Site "https://www.chess.com"]
[Date "2024.01.02"]
[Round "1"]
[White "Palchuk, Andrii"]
[Black "Ward, Ieuan C"]
[Result "1-0"]
[Board "135"]
[TimeControl "180+1"]
[WhiteFideId "14176688"]
[BlackFideId "406627"]
[WhiteElo "2669"]
[BlackElo "2362"]
[WhiteTeam "UKR"]
[BlackTeam "ENG"]
[WhiteClock "0:00:51"]
[BlackClock "0:00:00"]

1. d4 {[%clk 0:02:56]}  Nf6 {[%clk 0:02:57]} 2. c4 {[%clk 0:02:55]}  e6 {[%clk 0:02:57]} 3. Nf3 {[%clk 0:02:55]}  b6 {[%clk 0:02:56]} 4. g3 {[%clk 0:02:55]}  Bb7 {[%clk 0:02:57]} 5. Bg2 {[%clk 0:02:55]}  Be7 {[%clk 0:02:57]} 6. O-O {[%clk 0:02:55]}  O-O {[%clk 0:02:57]} 7. Re1 {[%clk 0:02:56]}  Ne4 {[%clk 0:02:57]} 8. Qc2 {[%clk 0:02:55]}  f5 {[%clk 0:02:56]} 9. Nfd2 {[%clk 0:02:55]}  d5 {[%clk 0:02:53]} 10. Nc3 {[%clk 0:02:53]}  c6 {[%clk 0:02:51]} 11. e3 {[%clk 0:02:49]}  Nd7 {[%clk 0:02:50]} 12. Ne2 {[%clk 0:02:45]}  Ndf6 {[%clk 0:02:44]} 13. Nf4 {[%clk 0:02:42]}  Qd7 {[%clk 0:02:41]} 14. Nf3 {[%clk 0:02:40]}  Bd6 {[%clk 0:02:34]} 15. Nd3 {[%clk 0:02:38]}  Rac8 {[%clk 0:02:24]} 16. Nfe5 {[%clk 0:02:36]}  Qe7 {[%clk 0:02:09]} 17. f3 {[%clk 0:02:36]}  Ng5 {[%clk 0:02:09]} 18. c5 {[%clk 0:02:34]}  bxc5 {[%clk 0:02:00]} 19. Nxc5 {[%clk 0:02:35]}  Bxc5 {[%clk 0:01:59]} 20. Qxc5 {[%clk 0:02:33]}  Qxc5 {[%clk 0:01:59]} 21. dxc5 {[%clk 0:02:34]}  Nf7 {[%clk 0:01:55]} 22. Nxf7 {[%clk 0:02:25]}  Rxf7 {[%clk 0:01:53]} 23. b4 {[%clk 0:02:19]}  Nd7 {[%clk 0:01:43]} 24. Bb2 {[%clk 0:02:13]}  a5 {[%clk 0:01:40]} 25. a3 {[%clk 0:02:12]}  Ba6 {[%clk 0:01:37]} 26. e4 {[%clk 0:02:06]}  fxe4 {[%clk 0:01:30]} 27. fxe4 {[%clk 0:02:07]}  Rcf8 {[%clk 0:01:29]} 28. exd5 {[%clk 0:02:02]}  exd5 {[%clk 0:01:27]} 29. Bd4 {[%clk 0:01:59]}  a4 {[%clk 0:01:24]} 30. Bh3 {[%clk 0:01:52]}  Kh8 {[%clk 0:01:23]} 31. Be6 {[%clk 0:01:50]}  Re7 {[%clk 0:01:21]} 32. Bg4 {[%clk 0:01:34]}  Ref7 {[%clk 0:01:12]} 33. Bh5 {[%clk 0:01:32]}  Rf5 {[%clk 0:00:51]} 34. Be8 {[%clk 0:01:27]}  Nb8 {[%clk 0:00:29]} 35. Re7 {[%clk 0:01:17]}  Rg5 {[%clk 0:00:10]} 36. Rae1 {[%clk 0:01:10]}  Kg8 {[%clk 0:00:07]} 37. Kg2 {[%clk 0:01:01]}  h5 {[%clk 0:00:06]} 38. h4 {[%clk 0:00:51]}  Rg4 {[%clk 0:00:00]} 39. Be5 {[%clk 0:00:51]} 1-0

[Event "January 2 Late 2024"]
[Site "https://www.chess.com"]
[Date "2024.01.02"]
[Round "1"]
[White "Bueno, Alfeu Junior Varela"]
[Black "TheCavemanChess"]
[Result "0-1"]
[Board "136"]
[TimeControl "180+1"]
[WhiteFideId "2108879"]
[WhiteElo "2361"]
[BlackElo "2665"]
[WhiteTeam "BRA"]
[WhiteClock "0:00:02"]
[BlackClock "0:01:10"]

1. e4 {[%clk 0:03:00]}  Nc6 {[%clk 0:02:58]} 2. Nc3 {[%clk 0:02:59]}  Nf6 {[%clk 0:02:57]} 3. f4 {[%clk 0:02:36]}  d5 {[%clk 0:02:50]} 4. e5 {[%clk 0:02:36]}  d4 {[%clk 0:02:45]} 5. exf6 {[%clk 0:02:21]}  dxc3 {[%clk 0:02:45]} 6. fxg7 {[%clk 0:02:21]}  cxd2+ {[%clk 0:02:43]} 7. Bxd2 {[%clk 0:02:22]}  Bxg7 {[%clk 0:02:43]} 8. c3 {[%clk 0:02:22]}  Bf5 {[%clk 0:02:41]} 9. Bc4 {[%clk 0:02:03]}  Qd6 {[%clk 0:02:37]} 10. Qe2 {[%clk 0:01:44]}  O-O-O {[%clk 0:02:21]} 11. O-O-O {[%clk 0:01:44]}  e5 {[%clk 0:02:07]} 12. g4 {[%clk 0:01:22]}  Be6 {[%clk 0:01:49]} 13. f5 {[%clk 0:01:22]}  Bxc4 {[%clk 0:01:43]} 14. Qxc4 {[%clk 0:01:23]}  h5 {[%clk 0:01:40]} 15. g5 {[%clk 0:01:14]}  e4 {[%clk 0:01:30]} 16. Ne2 {[%clk 0:01:02]}  Ne5 {[%clk 0:01:27]} 17. Qxe4 {[%clk 0:00:58]}  Nd3+ {[%clk 0:01:27]} 18. Kb1 {[%clk 0:00:56]}  Nf2 {[%clk 0:01:28]} 19. Qe3 {[%clk 0:00:18]}  Nxh1 {[%clk 0:01:21]} 20. Qxa7 {[%clk 0:00:18]}  Qd3+ {[%clk 0:01:17]} 21. Ka1 {[%clk 0:00:18]}  Qxe2 {[%clk 0:01:18]} 22. Qa8+ {[%clk 0:00:12]}  Kd7 {[%clk 0:01:18]} 23. Qa4+ {[%clk 0:00:11]}  b5 {[%clk 0:01:18]} 24. Qb3 {[%clk 0:00:07]}  Kc8 {[%clk 0:01:16]} 25. a3 {[%clk 0:00:01]}  Rxd2 {[%clk 0:01:15]} 26. Rxd2 {[%clk 0:00:01]}  Qxd2 {[%clk 0:01:15]} 27. Qxf7 {[%clk 0:00:02]}  Bxc3 {[%clk 0:01:10]} 28. Qxc7+ {[%clk 0:00:02]}  Kxc7 {[%clk 0:01:10]} 0-1

[Event "January 2 Late 2024"]
[Site "https://www.chess.com"]
[Date "2024.01.02"]
[Round "1"]
[White "Annaberdiyev, Meylis"]
[Black "Kleibel, Uwe"]
[Result "1-0"]
[Board "139"]
[TimeControl "180+1"]
[WhiteFideId "14000563"]
[BlackFideId "1270982"]
[WhiteElo "2663"]
[BlackElo "2356"]
[WhiteTeam "TKM"]
[BlackTeam "GER"]
[WhiteClock "0:00:20"]
[BlackClock "0:00:22"]

1. e4 {[%clk 0:02:59]}  e5 {[%clk 0:02:59]} 2. Nf3 {[%clk 0:02:59]}  Nc6 {[%clk 0:03:00]} 3. Bc4 {[%clk 0:02:59]}  Nf6 {[%clk 0:03:00]} 4. Qe2 {[%clk 0:03:00]}  Bc5 {[%clk 0:02:58]} 5. c3 {[%clk 0:02:59]}  O-O {[%clk 0:02:56]} 6. d3 {[%clk 0:02:59]}  a6 {[%clk 0:02:52]} 7. Bb3 {[%clk 0:02:59]}  d5 {[%clk 0:02:45]} 8. Bg5 {[%clk 0:02:57]}  dxe4 {[%clk 0:02:43]} 9. dxe4 {[%clk 0:02:57]}  Be7 {[%clk 0:02:43]} 10. O-O {[%clk 0:02:54]}  Bg4 {[%clk 0:02:38]} 11. h3 {[%clk 0:02:53]}  Bh5 {[%clk 0:02:38]} 12. Rd1 {[%clk 0:02:53]}  Qc8 {[%clk 0:02:36]} 13. Nbd2 {[%clk 0:02:51]}  h6 {[%clk 0:02:31]} 14. Bh4 {[%clk 0:02:47]}  Bg6 {[%clk 0:02:30]} 15. Bxf6 {[%clk 0:02:24]}  Bxf6 {[%clk 0:02:30]} 16. Nf1 {[%clk 0:02:24]}  Be7 {[%clk 0:02:15]} 17. Bd5 {[%clk 0:02:23]}  Bd6 {[%clk 0:02:08]} 18. Nh4 {[%clk 0:02:21]}  Ne7 {[%clk 0:02:07]} 19. Nxg6 {[%clk 0:02:21]}  Nxg6 {[%clk 0:02:08]} 20. Qg4 {[%clk 0:02:12]}  Qxg4 {[%clk 0:02:03]} 21. hxg4 {[%clk 0:02:13]}  Rab8 {[%clk 0:02:04]} 22. g3 {[%clk 0:02:13]}  Ne7 {[%clk 0:02:03]} 23. Kg2 {[%clk 0:02:07]}  Rfd8 {[%clk 0:02:02]} 24. Bb3 {[%clk 0:01:46]}  Bc5 {[%clk 0:02:00]} 25. Nd2 {[%clk 0:01:46]}  Kf8 {[%clk 0:01:57]} 26. Nf3 {[%clk 0:01:45]}  f6 {[%clk 0:01:57]} 27. Be6 {[%clk 0:01:40]}  Rd6 {[%clk 0:01:54]} 28. Rxd6 {[%clk 0:01:37]}  Bxd6 {[%clk 0:01:54]} 29. Rd1 {[%clk 0:01:31]}  Ke8 {[%clk 0:01:54]} 30. Nd2 {[%clk 0:01:30]}  Nc6 {[%clk 0:01:48]} 31. Nc4 {[%clk 0:01:26]}  Ke7 {[%clk 0:01:48]} 32. Bd5 {[%clk 0:01:14]}  Nd8 {[%clk 0:01:48]} 33. Ne3 {[%clk 0:01:12]}  Kf8 {[%clk 0:01:38]} 34. Nf5 {[%clk 0:01:10]}  g6 {[%clk 0:01:15]} 35. Nxh6 {[%clk 0:00:57]}  Kg7 {[%clk 0:01:16]} 36. g5 {[%clk 0:00:57]}  fxg5 {[%clk 0:01:15]} 37. Ng4 {[%clk 0:00:58]}  Nf7 {[%clk 0:01:08]} 38. Bxf7 {[%clk 0:00:57]}  Kxf7 {[%clk 0:01:08]} 39. Rh1 {[%clk 0:00:55]}  Kg7 {[%clk 0:01:08]} 40. Kf3 {[%clk 0:00:55]}  Rf8+ {[%clk 0:01:07]} 41. Ke2 {[%clk 0:00:56]}  Bc5 {[%clk 0:01:05]} 42. f3 {[%clk 0:00:54]}  Bd6 {[%clk 0:01:06]} 43. a4 {[%clk 0:00:52]}  a5 {[%clk 0:01:05]} 44. Kf2 {[%clk 0:00:46]}  Rf7 {[%clk 0:01:05]} 45. Kg2 {[%clk 0:00:46]}  Rf8 {[%clk 0:01:06]} 46. Rd1 {[%clk 0:00:46]}  b6 {[%clk 0:01:05]} 47. Rd5 {[%clk 0:00:46]}  Re8 {[%clk 0:01:05]} 48. Ne3 {[%clk 0:00:40]}  Kf7 {[%clk 0:01:02]} 49. Nc4 {[%clk 0:00:38]}  Ke6 {[%clk 0:01:01]} 50. Rd1 {[%clk 0:00:37]}  Rh8 {[%clk 0:00:56]} 51. Rh1 {[%clk 0:00:29]}  Rxh1 {[%clk 0:00:55]} 52. Kxh1 {[%clk 0:00:29]}  Bc5 {[%clk 0:00:56]} 53. Kg2 {[%clk 0:00:30]}  Kf6 {[%clk 0:00:54]} 54. Kh3 {[%clk 0:00:30]}  Ke6 {[%clk 0:00:54]} 55. Kg4 {[%clk 0:00:30]}  Kf6 {[%clk 0:00:54]} 56. Nd2 {[%clk 0:00:21]}  Be3 {[%clk 0:00:53]} 57. Nc4 {[%clk 0:00:21]}  Bc5 {[%clk 0:00:48]} 58. b3 {[%clk 0:00:22]}  Be7 {[%clk 0:00:41]} 59. Ne3 {[%clk 0:00:21]}  c6 {[%clk 0:00:39]} 60. Nc4 {[%clk 0:00:20]}  Bc5 {[%clk 0:00:39]} 61. b4 {[%clk 0:00:18]}  axb4 {[%clk 0:00:40]} 62. cxb4 {[%clk 0:00:19]}  Bxb4 {[%clk 0:00:39]} 63. Nxb6 {[%clk 0:00:19]}  c5 {[%clk 0:00:36]} 64. Nc4 {[%clk 0:00:20]}  Ke6 {[%clk 0:00:25]} 65. Kxg5 {[%clk 0:00:20]}  Be1 {[%clk 0:00:25]} 66. g4 {[%clk 0:00:19]}  Kd7 {[%clk 0:00:24]} 67. Kxg6 {[%clk 0:00:19]}  Kc6 {[%clk 0:00:25]} 68. Kf5 {[%clk 0:00:19]}  Bc3 {[%clk 0:00:24]} 69. g5 {[%clk 0:00:19]}  Kd7 {[%clk 0:00:25]} 70. g6 {[%clk 0:00:20]}  Ke7 {[%clk 0:00:22]} 71. a5 {[%clk 0:00:20]} 1-0

[Event "January 2 Late 2024"]
[Site "https://www.chess.com"]
[Date "2024.01.02"]
[Round "1"]
[White "Ramos Rivera, Jesse James"]
[Black "Injac, Teodora"]
[Result "0-1"]
[Board "140"]
[TimeControl "180+1"]
[WhiteFideId "3103250"]
[BlackFideId "932400"]
[WhiteElo "2356"]
[BlackElo "2661"]
[WhiteTeam "PUR"]
[BlackTeam "SRB"]
[WhiteClock "0:00:09"]
[BlackClock "0:00:08"]

1. e4 {[%clk 0:02:51]}  e6 {[%clk 0:03:00]} 2. d4 {[%clk 0:02:50]}  d5 {[%clk 0:03:00]} 3. exd5 {[%clk 0:02:49]}  exd5 {[%clk 0:03:00]} 4. c4 {[%clk 0:02:49]}  Nf6 {[%clk 0:02:59]} 5. Nc3 {[%clk 0:02:47]}  Bb4 {[%clk 0:02:55]} 6. Nf3 {[%clk 0:02:46]}  O-O {[%clk 0:02:55]} 7. Bd3 {[%clk 0:02:45]}  Re8+ {[%clk 0:02:53]} 8. Be3 {[%clk 0:02:45]}  dxc4 {[%clk 0:02:49]} 9. Bxc4 {[%clk 0:02:46]}  Nbd7 {[%clk 0:02:41]} 10. Bxf7+ {[%clk 0:02:36]}  Kxf7 {[%clk 0:02:39]} 11. Qb3+ {[%clk 0:02:35]}  Kf8 {[%clk 0:02:33]} 12. Qxb4+ {[%clk 0:02:35]}  Qe7 {[%clk 0:02:33]} 13. Qb3 {[%clk 0:02:31]}  Nb6 {[%clk 0:02:25]} 14. O-O {[%clk 0:02:19]}  Be6 {[%clk 0:02:25]} 15. Qc2 {[%clk 0:02:18]}  Kg8 {[%clk 0:02:18]} 16. Rfe1 {[%clk 0:02:16]}  c6 {[%clk 0:02:07]} 17. Bg5 {[%clk 0:02:07]}  Qf8 {[%clk 0:02:00]} 18. Ne5 {[%clk 0:01:57]}  Nfd5 {[%clk 0:01:55]} 19. h3 {[%clk 0:01:32]}  Bf5 {[%clk 0:01:52]} 20. Qd2 {[%clk 0:01:30]}  h6 {[%clk 0:01:50]} 21. Bh4 {[%clk 0:01:29]}  Re6 {[%clk 0:01:41]} 22. Re2 {[%clk 0:01:18]}  Rae8 {[%clk 0:01:40]} 23. Rae1 {[%clk 0:01:18]}  Bh7 {[%clk 0:01:31]} 24. Bg3 {[%clk 0:01:08]}  Qf5 {[%clk 0:01:22]} 25. Ne4 {[%clk 0:01:04]}  Nd7 {[%clk 0:01:01]} 26. Nc3 {[%clk 0:00:27]}  N7f6 {[%clk 0:00:50]} 27. Kh2 {[%clk 0:00:23]}  Qh5 {[%clk 0:00:48]} 28. f3 {[%clk 0:00:20]}  Qf5 {[%clk 0:00:44]} 29. Ne4 {[%clk 0:00:19]}  b6 {[%clk 0:00:39]} 30. Nxf6+ {[%clk 0:00:19]}  Nxf6 {[%clk 0:00:37]} 31. Ng4 {[%clk 0:00:16]}  Nd5 {[%clk 0:00:29]} 32. Re5 {[%clk 0:00:16]}  Rxe5 {[%clk 0:00:28]} 33. dxe5 {[%clk 0:00:13]}  Qe6 {[%clk 0:00:19]} 34. b3 {[%clk 0:00:11]}  h5 {[%clk 0:00:19]} 35. Nf2 {[%clk 0:00:11]}  Qe7 {[%clk 0:00:17]} 36. h4 {[%clk 0:00:11]}  Nc7 {[%clk 0:00:17]} 37. Nh3 {[%clk 0:00:11]}  Ne6 {[%clk 0:00:17]} 38. Qd6 {[%clk 0:00:09]}  Qf7 {[%clk 0:00:17]} 39. Qxc6 {[%clk 0:00:09]}  Bf5 {[%clk 0:00:17]} 40. Ng5 {[%clk 0:00:08]}  Nxg5 {[%clk 0:00:17]} 41. hxg5 {[%clk 0:00:09]}  Rc8 {[%clk 0:00:14]} 42. Qd6 {[%clk 0:00:08]}  Rc2 {[%clk 0:00:14]} 43. e6 {[%clk 0:00:08]}  Qe8 {[%clk 0:00:05]} 44. e7 {[%clk 0:00:08]}  Bg6 {[%clk 0:00:05]} 45. Qe6+ {[%clk 0:00:08]}  Kh7 {[%clk 0:00:05]} 46. Re2 {[%clk 0:00:06]}  Rc1 {[%clk 0:00:04]} 47. Qe5 {[%clk 0:00:06]}  Rc6 {[%clk 0:00:04]} 48. Qd4 {[%clk 0:00:05]}  Rc5 {[%clk 0:00:04]} 49. Be5 {[%clk 0:00:05]}  Kg8 {[%clk 0:00:03]} 50. Bxg7 {[%clk 0:00:04]}  Rxg5 {[%clk 0:00:04]} 51. Qf6 {[%clk 0:00:04]}  Rf5 {[%clk 0:00:04]} 52. Qd4 {[%clk 0:00:01]}  Rf7 {[%clk 0:00:04]} 53. Bf8 {[%clk 0:00:02]}  Kh7 {[%clk 0:00:04]} 54. Qe5 {[%clk 0:00:02]}  Rf5 {[%clk 0:00:03]} 55. Qe3 {[%clk 0:00:03]}  Rf7 {[%clk 0:00:04]} 56. Qe6 {[%clk 0:00:03]}  Rf5 {[%clk 0:00:04]} 57. Re5 {[%clk 0:00:04]}  Rxe5 {[%clk 0:00:04]} 58. Qxe5 {[%clk 0:00:05]}  Qf7 {[%clk 0:00:03]} 59. Qg7+ {[%clk 0:00:05]}  Qxg7 {[%clk 0:00:04]} 60. Bxg7 {[%clk 0:00:06]}  Kxg7 {[%clk 0:00:04]} 61. g4 {[%clk 0:00:06]}  hxg4 {[%clk 0:00:04]} 62. fxg4 {[%clk 0:00:07]}  Kf6 {[%clk 0:00:04]} 63. Kg3 {[%clk 0:00:07]}  Kxe7 {[%clk 0:00:05]} 64. Kf4 {[%clk 0:00:08]}  Ke6 {[%clk 0:00:05]} 65. Kg5 {[%clk 0:00:09]}  Bb1 {[%clk 0:00:06]} 66. Kh6 {[%clk 0:00:10]}  Bxa2 {[%clk 0:00:06]} 67. b4 {[%clk 0:00:10]}  Bc4 {[%clk 0:00:06]} 68. g5 {[%clk 0:00:10]}  Ke5 {[%clk 0:00:06]} 69. g6 {[%clk 0:00:11]}  Kd4 {[%clk 0:00:07]} 70. g7 {[%clk 0:00:11]}  Kc3 {[%clk 0:00:08]} 71. b5 {[%clk 0:00:09]}  Kb4 {[%clk 0:00:08]} 0-1

[Event "January 2 Late 2024"]
[Site "https://www.chess.com"]
[Date "2024.01.02"]
[Round "1"]
[White "Melamed, Daniel"]
[Black "Agibileg, Uurtsaikh"]
[Result "0-1"]
[Board "142"]
[TimeControl "180+1"]
[WhiteFideId "3229076"]
[BlackFideId "4901606"]
[WhiteElo "2351"]
[BlackElo "2656"]
[WhiteTeam "AUS"]
[BlackTeam "MGL"]
[WhiteClock "0:00:00"]
[BlackClock "0:00:19"]

1. d4 {[%clk 0:03:00]}  Nf6 {[%clk 0:02:59]} 2. Nf3 {[%clk 0:02:58]}  g6 {[%clk 0:02:57]} 3. Nc3 {[%clk 0:02:56]}  d5 {[%clk 0:02:57]} 4. Bf4 {[%clk 0:02:55]}  Bg7 {[%clk 0:02:57]} 5. e3 {[%clk 0:02:56]}  O-O {[%clk 0:02:57]} 6. Be2 {[%clk 0:02:56]}  c5 {[%clk 0:02:56]} 7. Ne5 {[%clk 0:02:56]}  cxd4 {[%clk 0:02:55]} 8. exd4 {[%clk 0:02:57]}  Nc6 {[%clk 0:02:55]} 9. Qd2 {[%clk 0:02:56]}  Qb6 {[%clk 0:02:55]} 10. O-O-O {[%clk 0:02:55]}  Ne4 {[%clk 0:02:53]} 11. Nxe4 {[%clk 0:02:54]}  dxe4 {[%clk 0:02:54]} 12. Nxc6 {[%clk 0:02:48]}  bxc6 {[%clk 0:02:55]} 13. Bh6 {[%clk 0:02:40]}  Rb8 {[%clk 0:02:53]} 14. b3 {[%clk 0:02:39]}  Rd8 {[%clk 0:02:46]} 15. Bxg7 {[%clk 0:02:38]}  Kxg7 {[%clk 0:02:47]} 16. Qf4 {[%clk 0:02:33]}  f6 {[%clk 0:02:43]} 17. Qxe4 {[%clk 0:02:29]}  Rb7 {[%clk 0:02:42]} 18. c3 {[%clk 0:02:21]}  Bf5 {[%clk 0:02:37]} 19. Qe3 {[%clk 0:02:19]}  Rbd7 {[%clk 0:01:44]} 20. h4 {[%clk 0:02:16]}  Qa5 {[%clk 0:01:17]} 21. Kb2 {[%clk 0:02:12]}  h5 {[%clk 0:00:52]} 22. f3 {[%clk 0:02:01]}  e5 {[%clk 0:00:42]} 23. dxe5 {[%clk 0:01:58]}  Qxe5 {[%clk 0:00:38]} 24. Qxe5 {[%clk 0:01:57]}  Rd2+ {[%clk 0:00:36]} 25. Kc1 {[%clk 0:01:43]}  Rc2+ {[%clk 0:00:32]} 26. Kb1 {[%clk 0:01:40]}  Rxe2+ {[%clk 0:00:20]} 27. Qxf5 {[%clk 0:01:37]}  Rxd1+ {[%clk 0:00:21]} 28. Rxd1 {[%clk 0:01:36]}  gxf5 {[%clk 0:00:22]} 29. Rg1 {[%clk 0:01:35]}  f4 {[%clk 0:00:21]} 30. g3 {[%clk 0:01:31]}  fxg3 {[%clk 0:00:19]} 31. Rxg3+ {[%clk 0:01:32]}  Kf7 {[%clk 0:00:20]} 32. Rh3 {[%clk 0:01:25]}  Rf2 {[%clk 0:00:20]} 33. Rh1 {[%clk 0:01:07]}  Rxf3 {[%clk 0:00:20]} 34. Kb2 {[%clk 0:01:05]}  f5 {[%clk 0:00:20]} 35. Rd1 {[%clk 0:01:01]}  Ke6 {[%clk 0:00:20]} 36. Rd8 {[%clk 0:01:00]}  f4 {[%clk 0:00:20]} 37. Rh8 {[%clk 0:00:56]}  Kf5 {[%clk 0:00:20]} 38. Rxh5+ {[%clk 0:00:56]}  Kg4 {[%clk 0:00:20]} 39. Rh8 {[%clk 0:00:56]}  Rh3 {[%clk 0:00:20]} 40. Rg8+ {[%clk 0:00:46]}  Kxh4 {[%clk 0:00:19]} 41. Ra8 {[%clk 0:00:47]}  f3 {[%clk 0:00:19]} 42. Rxa7 {[%clk 0:00:45]}  f2 {[%clk 0:00:18]} 43. Rf7 {[%clk 0:00:45]}  Kg3 {[%clk 0:00:18]} 44. a4 {[%clk 0:00:42]}  Rh1 {[%clk 0:00:19]} 45. a5 {[%clk 0:00:38]}  f1=Q {[%clk 0:00:18]} 46. Rxf1 {[%clk 0:00:39]}  Rxf1 {[%clk 0:00:19]} 47. b4 {[%clk 0:00:38]}  Kf4 {[%clk 0:00:17]} 48. Kb3 {[%clk 0:00:37]}  Ke5 {[%clk 0:00:17]} 49. Kc4 {[%clk 0:00:31]}  Kd6 {[%clk 0:00:18]} 50. Kb3 {[%clk 0:00:12]}  Kc7 {[%clk 0:00:16]} 51. Kc4 {[%clk 0:00:12]}  Rf4+ {[%clk 0:00:16]} 52. Kc5 {[%clk 0:00:10]}  Rf5+ {[%clk 0:00:17]} 53. Kc4 {[%clk 0:00:10]}  Kb7 {[%clk 0:00:17]} 54. Kb3 {[%clk 0:00:09]}  Ka6 {[%clk 0:00:18]} 55. Ka4 {[%clk 0:00:07]}  Rf4 {[%clk 0:00:17]} 56. Kb3 {[%clk 0:00:05]}  Kb5 {[%clk 0:00:18]} 57. c4+ {[%clk 0:00:01]}  Rxc4 {[%clk 0:00:18]} 58. a6 {[%clk 0:00:02]}  Rxb4+ {[%clk 0:00:18]} 59. Kc3 {[%clk 0:00:00]}  Ra4 {[%clk 0:00:19]} 0-1

[Event "January 2 Late 2024"]
[Site "https://www.chess.com"]
[Date "2024.01.02"]
[Round "1"]
[White "Aghasiyev, Kamal"]
[Black "Doluhanova, Evgeniya"]
[Result "1-0"]
[Board "143"]
[TimeControl "180+1"]
[WhiteFideId "13402854"]
[BlackFideId "14112035"]
[WhiteElo "2654"]
[BlackElo "2350"]
[WhiteTeam "AZE"]
[BlackTeam "UKR"]
[WhiteClock "0:00:08"]
[BlackClock "0:00:03"]

1. d4 {[%clk 0:02:48]}  Nf6 {[%clk 0:02:59]} 2. c4 {[%clk 0:02:47]}  e6 {[%clk 0:02:59]} 3. Nc3 {[%clk 0:02:43]}  Bb4 {[%clk 0:02:58]} 4. e3 {[%clk 0:02:41]}  O-O {[%clk 0:02:57]} 5. Ne2 {[%clk 0:02:41]}  b6 {[%clk 0:02:56]} 6. a3 {[%clk 0:02:39]}  Bxc3+ {[%clk 0:02:50]} 7. Nxc3 {[%clk 0:02:39]}  Ba6 {[%clk 0:02:50]} 8. Bd3 {[%clk 0:02:35]}  d5 {[%clk 0:02:48]} 9. cxd5 {[%clk 0:02:29]}  Bxd3 {[%clk 0:02:47]} 10. Qxd3 {[%clk 0:02:29]}  exd5 {[%clk 0:02:46]} 11. O-O {[%clk 0:02:29]}  Nbd7 {[%clk 0:02:44]} 12. b4 {[%clk 0:02:22]}  Rc8 {[%clk 0:02:18]} 13. b5 {[%clk 0:02:14]}  c5 {[%clk 0:02:10]} 14. a4 {[%clk 0:02:01]}  Re8 {[%clk 0:02:05]} 15. Bb2 {[%clk 0:01:54]}  cxd4 {[%clk 0:02:05]} 16. Qxd4 {[%clk 0:01:52]}  Nc5 {[%clk 0:02:00]} 17. Rad1 {[%clk 0:01:48]}  Nb3 {[%clk 0:01:48]} 18. Qf4 {[%clk 0:01:34]}  Rc4 {[%clk 0:01:33]} 19. Nxd5 {[%clk 0:01:10]}  Rxf4 {[%clk 0:01:11]} 20. Nxf6+ {[%clk 0:01:09]}  Rxf6 {[%clk 0:01:11]} 21. Rxd8 {[%clk 0:01:03]}  Rxd8 {[%clk 0:01:09]} 22. Bxf6 {[%clk 0:01:04]}  gxf6 {[%clk 0:01:09]} 23. Rb1 {[%clk 0:01:03]}  Nc5 {[%clk 0:01:08]} 24. Ra1 {[%clk 0:01:00]}  Nxa4 {[%clk 0:01:04]} 25. g3 {[%clk 0:00:58]}  Nc3 {[%clk 0:00:59]} 26. Rxa7 {[%clk 0:00:58]}  Nxb5 {[%clk 0:00:57]} 27. Rb7 {[%clk 0:00:58]}  Rd6 {[%clk 0:00:56]} 28. f4 {[%clk 0:00:54]}  f5 {[%clk 0:00:55]} 29. Kf2 {[%clk 0:00:54]}  Nc3 {[%clk 0:00:54]} 30. Kf3 {[%clk 0:00:53]}  b5 {[%clk 0:00:54]} 31. g4 {[%clk 0:00:53]}  fxg4+ {[%clk 0:00:53]} 32. Kxg4 {[%clk 0:00:53]}  Kg7 {[%clk 0:00:51]} 33. Kf5 {[%clk 0:00:52]}  Rd5+ {[%clk 0:00:50]} 34. Kg4 {[%clk 0:00:52]}  h5+ {[%clk 0:00:45]} 35. Kf3 {[%clk 0:00:51]}  Rc5 {[%clk 0:00:44]} 36. e4 {[%clk 0:00:50]}  Na2 {[%clk 0:00:39]} 37. f5 {[%clk 0:00:47]}  b4 {[%clk 0:00:38]} 38. Kf4 {[%clk 0:00:47]}  Nc1 {[%clk 0:00:27]} 39. Ke3 {[%clk 0:00:30]}  b3 {[%clk 0:00:27]} 40. Kd4 {[%clk 0:00:30]}  Rc2 {[%clk 0:00:24]} 41. e5 {[%clk 0:00:29]}  b2 {[%clk 0:00:20]} 42. e6 {[%clk 0:00:30]}  Rd2+ {[%clk 0:00:19]} 43. Kc3 {[%clk 0:00:26]}  Re2 {[%clk 0:00:18]} 44. Rxf7+ {[%clk 0:00:25]}  Kh6 {[%clk 0:00:17]} 45. Rb7 {[%clk 0:00:25]}  Na2+ {[%clk 0:00:15]} 46. Kd3 {[%clk 0:00:22]}  Re5 {[%clk 0:00:13]} 47. Rxb2 {[%clk 0:00:15]}  Nc1+ {[%clk 0:00:13]} 48. Kd4 {[%clk 0:00:13]}  Re1 {[%clk 0:00:08]} 49. Kd5 {[%clk 0:00:10]}  Kg7 {[%clk 0:00:08]} 50. Rb7+ {[%clk 0:00:09]}  Kf6 {[%clk 0:00:08]} 51. Rf7+ {[%clk 0:00:09]}  Kg5 {[%clk 0:00:08]} 52. e7 {[%clk 0:00:10]}  Nb3 {[%clk 0:00:08]} 53. f6 {[%clk 0:00:10]}  Kg6 {[%clk 0:00:08]} 54. Rf8 {[%clk 0:00:10]}  Rd1+ {[%clk 0:00:08]} 55. Kc4 {[%clk 0:00:08]}  Re1 {[%clk 0:00:07]} 56. Kxb3 {[%clk 0:00:08]}  Re3+ {[%clk 0:00:03]} 57. Kc4 {[%clk 0:00:08]} 1-0